[Event "1st Chateau Montaiguillon Rapid 2019"]
[Site "Montagne"]
[Date "2019.09.08"]
[Round "9.4"]
[White "Calvo, Dylan"]
[Black "Daulyte-Cornette, Deimante"]
[Result "0-1"]
[ECO "A41"]
[WhiteElo "2012"]
[BlackElo "2412"]
[Annotator "NA"]
[PlyCount "96"]
[EventDate "2019.09.08"]
[EventType "swiss"]
[EventCountry "FRA"]
[SourceTitle "playchess.com"]
[Source "ChessBase"]
[SourceQuality "1"]
[TimeControl "720+3"]

1. d4 {[%emt 0:00:00]} d6 {[%emt 0:00:00]} 2. c4 {[%emt 0:00:01]} e5 {[%emt 0:00:05]} 3. dxe5 {[%emt 0:00:12]} dxe5 {[%emt 0:00:01]} 4. Qxd8+ {[%emt 0:00:03]} Kxd8 {[%emt 0:00:02]} 5. Nf3 {[%emt 0:00:24]} f6 {[%emt 0:00:08]} 6. g3 {[%emt 0:11:38]} Be6 {[%emt 0:00:11]} 7. b3 {[%emt 0:00:11]} Nc6 {[%emt 0:01:41]} 8. Bg2 {[%emt 0:00:05]} Nb4 {[%emt 0:00:11]} 9. Na3 {[%emt 0:00:20]} c6 {[%emt 0:00:10]} 10. O-O {[%emt 0:10:32]} Bc5 {[%emt 0:00:12]} 11. Bb2 {[%emt 0:00:32]} Ne7 {[%emt 0:00:28]} 12. Nd2 {[%emt 0:00:26]} Nf5 {[%emt 0:01:11]} 13. Ne4 {[%emt 0:00:26]} Be7 {[%emt 0:00:32]} 14. Rfc1 {[%emt 0:09:15]} Kc7 {[%emt 0:00:29]} 15. Nc2 {[%emt 0:08:29]} a5 {[%emt 0:00:37]} 16. Ne1 {[%emt 0:08:24]} Nd4 {[%emt 0:00:29]} 17. Bxd4 {[%emt 0:01:07]} exd4 {[%emt 0:00:01]} 18. a3 {[%emt 0:00:05]} Na6 {[%emt 0:00:08]} 19. Nd3 {[%emt 0:00:03]} f5 {[%emt 0:00:20]} 20. Nd2 {[%emt 0:00:25]} Nc5 {[%emt 0:00:17]} 21. Nxc5 {[%emt 0:01:25]} Bxc5 {[%emt 0:00:02]} 22. Nf3 {[%emt 0:00:02]} Rhd8 {[%emt 0:00:20]} 23. Ne5 {[%emt 0:00:01]} Be7 {[%emt 0:05:34]} 24. Nd3 {[%emt 0:00:01]} Ra6 {[%emt 0:00:33]} 25. a4 {[%emt 0:01:59]} Rb6 {[%emt 0:00:10]} 26. Rab1 {[%emt 0:00:04]} g5 {[%emt 0:01:37]} 27. Rd1 {[%emt 0:00:05]} Bb4 {[%emt 0:00:46]} 28. c5 {[%emt 0:00:29]} Ra6 {[%emt 0:00:01]} 29. Nxb4 {[%emt 0:00:01]} axb4 {[%emt 0:00:01]} 30. Rd3 {[%emt 0:00:52]} Ra5 {[%emt 0:02:39]} 31. Rc1 {[%emt 0:00:03]} Bf7 {[%emt 0:00:48]} 32. f4 {[%emt 0:00:51]} gxf4 {[%emt 0:00:27]} 33. gxf4 {[%emt 0:00:01]} Bd5 {[%emt 0:00:09]} 34. Bxd5 {[%emt 0:00:16]} Rxd5 {[%emt 0:00:02]} 35. Kf2 {[%emt 0:00:02]} Kd7 {[%emt 0:00:26]} 36. Rh3 {[%emt 0:00:02]} Raxc5 {[%emt 0:00:11]} 37. Rxh7+ {[%emt 0:00:02]} Kc8 {[%emt 0:00:11]} 38. Rg1 {[%emt 0:00:01]} Rd7 {[%emt 0:00:03]} 39. Rh8+ {[%emt 0:00:02]} Kc7 {[%emt 0:00:01]} 40. Rg5 {[%emt 0:00:01]} d3 {[%emt 0:00:10]} 41. exd3 {[%emt 0:00:02]} Rxd3 {[%emt 0:00:01]} 42. Rg3 {[%emt 0:00:19]} Rd2+ {[%emt 0:00:14]} 43. Ke1 {[%emt 0:00:02]} Rb2 {[%emt 0:00:05]} 44. Rh7+ {[%emt 0:00:01]} Kb6 {[%emt 0:00:01]} 45. Rd7 {[%emt 0:00:01]} Rc1+ {[%emt 0:00:05]} 46. Rd1 {[%emt 0:00:01]} Rcc2 {[%emt 0:00:01]} 47. h4 {[%emt 0:00:06]} Rh2 {[%emt 0:00:02]} 48. Kf1 {[%emt 0:00:10]} Rxh4 {[%emt 0:00:05]} 0-1